bitfinex/quotes_SOLUSD_20240826
["timestamp","ask_amount","ask_price","bid_price","bid_amount"]
[1724665159834,7.80195142,160.23,160.13,30.00239327]
[1724665160050,7.80195142,160.23,160.14,20.0]
[1724665160339,7.80195142,160.23,160.11,30.00239327]
[1724665160340,1.56075142,160.23,160.11,30.00239327]
[1724665160746,6.2419,160.21,160.11,30.00239327]
[1724665160917,30.00239327,160.24,160.09,21.4639]
[1724665160918,7.80332142,160.2,160.09,15.1889]
[1724665161113,1.56102142,160.2,160.1,30.00239327]
[1724665161518,7.80322142,160.2,160.1,30.00239327]
[1724665162130,7.80322142,160.2,160.09,15.1889]
[1724665162444,6.4771,160.19,160.11,20.0]
[1724665162740,6.4771,160.19,160.09,20.0]
[1724665162918,6.4771,160.19,160.12,1.24884983]
[1724665163239,6.4771,160.19,160.12,20.0]
[1724665163443,17.78762729,160.22,160.12,20.0]
[1724665163622,17.78741997,160.22,160.13,45.0]
[1724665164013,17.78741997,160.22,160.14,20.0]
[1724665164222,396.3847,160.23,160.15,45.0]
[1724665164642,1.56057469,160.22,160.12,20.0]
[1724665164963,1.56057469,160.22,160.13,45.0]
[1724665165127,396.3847,160.23,160.14,57.47600916]
[1724665165318,6.0847,160.23,160.15,45.0]
[1724665165518,6.0847,160.23,160.14,57.47600916]
[1724665165519,1.56057462,160.22,160.14,57.47600916]
[1724665165719,1.56057462,160.22,160.14,20.0]
[1724665165925,1.56057462,160.22,160.12,20.0]
[1724665166131,7.80227462,160.22,160.12,20.0]
[1724665166841,6.0847,160.23,160.12,20.0]
[1724665167134,7.64542744,160.23,160.12,20.0]
[1724665167641,13.88652744,160.23,160.13,45.0]
[1724665168638,7.64542744,160.23,160.13,45.0]
[1724665168854,6.0847,160.23,160.14,20.0]
[1724665169154,6.0847,160.23,160.14,57.47600916]
[1724665170524,6.0847,160.23,160.15,1.24850871]
[1724665170724,7.64532626,160.23,160.14,57.47600916]
[1724665171449,13.88662626,160.23,160.14,20.0]
[1724665171752,6.0847,160.23,160.15,46.24857207]
[1724665174663,21.9814,160.26,160.2,37.47600916]
[1724665174961,21.9814,160.26,160.21,1.24811261]
[1724665175252,6.039,160.26,160.21,1.24811261]
[1724665175648,6.039,160.26,160.2,37.47600916]
[1724665175832,6.039,160.26,160.17,37.47600916]
[1724665176035,6.039,160.26,160.18,65.0]
[1724665176036,1.56015225,160.25,160.18,65.0]
[1724665176442,7.59929638,160.26,160.18,65.0]
[1724665176644,6.039,160.26,160.19,1.24827027]
[1724665176841,6.039,160.26,160.18,20.0]
[1724665176842,1.56040224,160.25,160.18,20.0]
[1724665177053,1.56040224,160.25,160.15,20.0]
[1724665177254,7.80060224,160.25,160.16,45.0]
[1724665177463,1.56040224,160.25,160.17,20.0]
[1724665178071,1.56038854,160.24,160.17,20.0]
[1724665178248,1.5604906,160.24,160.17,20.0]
[1724665179166,16.9299861,160.23,160.11,57.47600916]
[1724665179342,23.1710861,160.23,160.12,1.56267182]
[1724665179761,6.2417,160.22,160.12,1.56267182]
[1724665180073,7.80276334,160.21,160.08,16.3083]
[1724665180274,6.4593,160.19,160.09,59.03886294]
[1724665180447,1.56101731,160.18,160.09,37.47600916]
[1724665180955,1.56101731,160.18,160.1,1.56286574]
[1724665181543,1.56106707,160.17,160.1,1.56286574]
[1724665182053,1.56106707,160.17,160.08,29.98280281]
[1724665182774,1.56106707,160.17,160.06,29.98280281]
[1724665182978,421.84386988,160.17,160.04,51.77440281]
[1724665183147,22.9046,160.16,160.04,45.49940281]
[1724665183345,31.54429416,160.15,160.02,29.98280281]
[1724665183552,6.3696,160.13,160.02,29.98280281]
[1724665183783,1.56165294,160.12,160.02,29.98280281]
[1724665184451,6.3696,160.13,160.06,29.98280281]
[1724665184851,6.3696,160.13,160.08,29.98280281]
[1724665185053,6.3696,160.13,160.09,1.2490384]
[1724665185276,6.3696,160.13,160.08,29.98280281]
[1724665185955,6.3696,160.13,160.07,20.0]
[1724665186150,6.3696,160.13,160.08,45.0]
[1724665186352,6.3696,160.13,160.07,20.0]
[1724665188378,6.3696,160.13,160.04,20.0]
[1724665188555,6.3696,160.13,160.05,29.98280281]
[1724665188750,6.3696,160.13,160.06,20.0]
[1724665189770,7.9310733,160.13,160.06,20.0]
[1724665189978,6.3696,160.13,160.06,20.0]
[1724665190164,6.3696,160.13,160.07,46.24913644]
[1724665190366,6.3696,160.13,160.07,45.0]
[1724665190755,6.3696,160.13,160.06,20.0]
[1724665190955,7.93114144,160.13,160.06,20.0]
[1724665191258,7.93114144,160.13,160.04,20.0]
[1724665191461,7.93114144,160.13,160.05,45.0]
[1724665191790,7.93114144,160.13,160.06,20.0]
[1724665192466,1.56156778,160.12,160.06,20.0]
[1724665192787,1.56156778,160.12,160.01,29.98280281]
[1724665192983,1.56156778,160.12,160.02,1.56361818]
[1724665193977,1.56156778,160.12,160.02,46.56361818]
[1724665194181,1.56156778,160.12,160.03,20.0]
[1724665195269,1.56156778,160.12,160.02,20.0]
[1724665195580,16.1961,160.11,160.0,20.0]
[1724665195781,1.56189806,160.1,160.01,1.56375321]
[1724665197091,1.56189806,160.1,160.01,46.56375321]
[1724665197388,16.1961,160.11,160.02,21.24951887]
[1724665197568,16.1961,160.11,160.03,45.0]
[1724665197889,1.56182103,160.1,160.04,20.0]
[1724665198585,1.56182103,160.1,160.02,20.0]
[1724665202589,16.1961,160.11,160.03,74.98280281]
[1724665202898,16.1961,160.11,160.05,29.98280281]
[1724665203194,16.1961,160.11,160.04,20.0]
[1724665203609,1.5617097,160.1,160.04,20.0]
[1724665204377,17.75785572,160.11,160.04,20.0]
[1724665205098,16.1961,160.11,160.04,20.0]
[1724665205688,16.1961,160.11,160.05,45.0]
[1724665207104,1.56158281,160.1,160.04,20.0]
[1724665207294,1.56158281,160.1,160.0,20.0]
[1724665208394,1.56158281,160.1,160.01,45.0]
[1724665208593,1.56158281,160.1,160.02,20.0]
[1724665210303,6.2236,160.09,160.02,20.0]
[1724665210476,1.56194503,160.08,160.02,20.0]
[1724665211205,7.78554252,160.09,160.02,20.0]
[1724665211596,6.2236,160.09,160.03,76.23235357]
[1724665211902,6.2236,160.09,160.04,20.0]
[1724665212073,6.2236,160.09,160.05,46.24929946]
[1724665212275,16.1961,160.11,160.06,20.0]
[1724665212505,16.1961,160.11,160.07,45.0]
[1724665212696,16.1961,160.11,160.08,20.0]
[1724665214291,6.5228,160.13,160.08,20.0]
[1724665214803,16.339,160.16,160.11,29.98280281]
[1724665215004,6.1714,160.19,160.12,65.0]
[1724665215712,6.1714,160.19,160.13,31.23147129]
[1724665215877,6.1714,160.19,160.15,29.98280281]
[1724665216211,390.3,160.28,160.16,66.24845573]
[1724665216212,22.5104,160.26,160.16,66.24845573]
[1724665216709,22.5104,160.26,160.17,29.98280281]
[1724665216882,22.5104,160.26,160.18,66.24824238]
[1724665217405,24.07072172,160.26,160.18,65.0]
[1724665217593,24.07072172,160.26,160.18,20.0]
[1724665217796,24.07072172,160.26,160.16,20.0]
[1724665218114,24.07072172,160.26,160.17,45.0]
[1724665218406,24.07072172,160.26,160.18,20.0]
[1724665221321,24.07072172,160.26,160.12,16.319]
[1724665221322,29.98280281,160.25,160.11,29.98280281]
[1724665221520,36.22380281,160.23,160.11,29.98280281]
[1724665221709,1.56081091,160.22,160.11,29.98280281]
[1724665222316,390.3,160.24,160.12,1.56261038]
[1724665222631,31.54353203,160.23,160.11,29.98280281]
[1724665222801,31.54353203,160.23,160.12,45.0]
[1724665223327,1.56080583,160.23,160.13,29.98280281]
[1724665223618,1.56080583,160.23,160.14,45.0]
[1724665223793,1.56080583,160.23,160.15,20.0]
[1724665224001,1.56080583,160.23,160.16,45.0]
[1724665224200,390.3,160.24,160.17,20.0]
[1724665224402,1.56039659,160.23,160.18,45.0]
[1724665224697,390.3,160.24,160.18,45.0]
[1724665225095,390.3,160.24,160.19,20.0]
[1724665225317,390.3,160.24,160.2,45.0]
[1724665225524,390.3,160.24,160.19,20.0]
[1724665225724,390.3,160.24,160.18,20.0]
[1724665225916,390.3,160.24,160.16,20.0]
[1724665226233,31.54320075,160.23,160.11,29.98280281]
[1724665226405,31.54320075,160.23,160.12,1.5625161]
[1724665226616,390.3,160.24,160.12,1.5625161]
[1724665226617,390.3,160.24,160.13,29.98280281]
[1724665226796,390.3,160.24,160.14,1.24839342]
[1724665226991,390.3,160.24,160.13,29.98280281]
[1724665227193,1.56054573,160.23,160.13,29.98280281]
[1724665227424,1.56054573,160.23,160.11,49.98280281]
[1724665227631,1.56054573,160.23,160.12,65.0]
[1724665228000,1.56054573,160.23,160.12,45.0]
[1724665228330,420.28280281,160.25,160.12,45.0]
[1724665228331,1.56070111,160.24,160.13,29.98280281]
[1724665228626,1.56054499,160.23,160.14,45.0]
[1724665229031,31.5433478,160.23,160.14,45.0]
[1724665229239,31.5433478,160.23,160.15,20.0]
[1724665229737,1.56071965,160.24,160.16,45.0]
[1724665229912,1.56071965,160.23,160.16,45.0]
[1724665230613,390.3,160.25,160.17,31.23117141]
[1724665230819,390.3,160.25,160.18,65.0]
[1724665231635,1.56018462,160.24,160.18,65.0]
[1724665231838,390.3,160.25,160.18,65.0]
[1724665232013,390.3,160.25,160.19,1.24830965]
[1724665232214,390.3,160.25,160.18,65.0]
[1724665232746,22.5104,160.26,160.18,65.0]
[1724665233117,6.1714,160.26,160.18,65.0]
[1724665233531,6.1714,160.26,160.19,29.98280281]
[1724665233734,6.1714,160.26,160.2,65.0]
[1724665233950,22.0501,160.3,160.21,31.23081427]
[1724665234123,22.0501,160.3,160.22,65.0]
[1724665234323,22.0501,160.3,160.23,1.24789517]
[1724665234647,22.0501,160.3,160.24,1.24789599]
[1724665235849,22.0501,160.3,160.23,1.24789512]
[1724665236019,22.0501,160.3,160.24,1.24789512]
[1724665236636,412.6663,160.34,160.24,66.24789512]
[1724665236946,22.3663,160.34,160.24,66.24789512]
[1724665237273,22.3663,160.34,160.25,29.98280281]
[1724665237447,22.3663,160.34,160.26,65.0]
[1724665238153,22.3663,160.34,160.27,1.24755372]
[1724665238540,6.2918,160.34,160.27,31.23035653]
[1724665238870,6.2918,160.34,160.28,20.0]
[1724665239059,1.55969668,160.33,160.23,15.2811]
[1724665239244,1.55969607,160.32,160.24,20.0]
[1724665239642,6.2918,160.34,160.24,20.0]
[1724665239842,1.55965434,160.33,160.23,20.0]
[1724665240078,6.2918,160.34,160.24,1.24789083]
[1724665240261,7.85139826,160.34,160.23,20.0]
[1724665240960,14.08819826,160.34,160.23,20.0]
[1724665241161,29.98280281,160.33,160.23,20.0]
[1724665241354,29.98280281,160.33,160.24,1.24793401]
[1724665241969,36.21990281,160.33,160.22,1.2478492]
[1724665242160,1.55980969,160.32,160.21,20.0]
[1724665242468,6.238,160.31,160.21,20.0]
[1724665242638,22.0868,160.31,160.22,45.0]
[1724665242966,15.8488,160.31,160.23,1.2479822]
[1724665244071,15.8488,160.31,160.22,1.24797892]
[1724665244294,15.8488,160.31,160.22,21.24797892]
[1724665244853,52.06960281,160.31,160.22,21.24797892]
[1724665245263,15.8488,160.31,160.23,46.24798068]
[1724665245472,15.8488,160.31,160.24,1.24787724]
[1724665246798,15.8488,160.31,160.23,45.0]
[1724665246799,17.40853686,160.31,160.23,45.0]
[1724665247275,15.8488,160.31,160.22,20.0]
[1724665247472,15.8488,160.31,160.21,20.0]
[1724665247778,15.8488,160.31,160.22,46.24797937]
[1724665247973,15.8488,160.31,160.23,20.0]
[1724665248278,1.55984503,160.3,160.23,20.0]
[1724665249982,15.8488,160.31,160.24,1.24796248]
[1724665250159,15.8488,160.31,160.24,45.0]
[1724665250359,1.55979274,160.3,160.24,45.0]
[1724665250656,15.8488,160.31,160.24,45.0]
[1724665250863,1.55977846,160.3,160.24,45.0]
[1724665251058,1.55990587,160.29,160.23,20.0]
[1724665251264,1.55996033,160.28,160.21,20.0]
[1724665251573,1.55996033,160.28,160.19,16.5221]
[1724665252059,1.56012542,160.28,160.19,16.5221]
[1724665252559,1.56013573,160.27,160.16,36.23480281]
[1724665252754,1.56034066,160.26,160.15,15.6655]
[1724665253165,1.56034066,160.26,160.14,29.98280281]
[1724665253381,6.241,160.24,160.12,29.98280281]
[1724665253587,37.78464289,160.23,160.12,29.98280281]
[1724665253759,51.36170281,160.25,160.13,1.24863242]
[1724665253954,45.12120281,160.25,160.13,1.24863242]
[1724665254167,6.2411,160.23,160.13,1.24863242]
[1724665254359,1.56078277,160.22,160.12,29.98280281]
[1724665254554,8.00539078,160.21,160.11,16.4973]
[1724665254890,1.56086887,160.2,160.1,29.98280281]
[1724665255049,1.56086887,160.2,160.08,29.98280281]
[1724665255959,6.4446,160.21,160.1,29.98280281]
[1724665256166,6.4446,160.21,160.11,20.0]
[1724665256476,1.56075316,160.2,160.11,20.0]
[1724665256983,6.4446,160.21,160.12,74.98280281]
[1724665257181,15.1384,160.25,160.2,29.98280281]
[1724665257476,6.5361,160.26,160.21,21.24813078]
[1724665257656,6.5361,160.26,160.21,20.0]
[1724665257860,6.5361,160.26,160.22,1.24824709]
[1724665258560,6.5361,160.26,160.18,20.0]
[1724665258876,6.5361,160.26,160.19,45.0]
[1724665259072,6.5361,160.26,160.2,20.0]
[1724665261778,15.612,160.29,160.21,46.2481024]
[1724665263081,17.1719394,160.29,160.21,45.0]
[1724665263784,15.612,160.29,160.21,45.0]
[1724665264106,15.612,160.29,160.22,20.0]
[1724665264261,6.6066,160.3,160.23,45.0]
[1724665264459,8.16637424,160.3,160.23,45.0]
[1724665264664,1.5599087,160.29,160.16,20.0]
[1724665264891,1.5599087,160.29,160.18,29.98280281]
[1724665265186,6.6066,160.3,160.19,70.94653385]
[1724665265395,1.56006537,160.29,160.2,3.44889546]
[1724665265563,6.6066,160.3,160.21,1.24805323]
[1724665265766,6.6066,160.3,160.21,46.24805323]
[1724665266274,6.6066,160.3,160.2,74.98280281]
[1724665266478,6.6066,160.3,160.21,20.0]
[1724665266674,6.6066,160.3,160.22,45.0]
[1724665267966,6.6066,160.3,160.23,20.0]
[1724665268169,6.6066,160.3,160.24,45.0]
[1724665268777,6.6066,160.3,160.25,1.24781573]
[1724665269366,6.6066,160.3,160.24,45.0]
[1724665269986,6.6066,160.3,160.23,20.0]
[1724665270181,6.6066,160.3,160.21,20.0]
[1724665270390,1.56008483,160.29,160.21,20.0]
[1724665270589,1.56008483,160.29,160.19,20.0]
[1724665270789,1.56008483,160.29,160.15,26.256]
[1724665270790,1.56010306,160.28,160.16,29.98280281]
[1724665271067,15.5734,160.27,160.17,4.69986918]
[1724665271295,1.56029619,160.26,160.17,4.69986918]
[1724665271666,31.54309874,160.25,160.17,3.45018659]
[1724665271866,31.54309874,160.25,160.15,10.71318287]
[1724665272090,31.54309874,160.25,160.16,3.45120322]
[1724665272697,31.54309874,160.25,160.15,10.71318287]
[1724665272903,6.2999,160.24,160.16,20.0]
[1724665273071,1.56058351,160.23,160.16,20.0]
[1724665273266,1.56058351,160.23,160.15,20.0]
[1724665273469,6.2999,160.24,160.16,4.70020563]
[1724665273789,6.2999,160.24,160.16,4.70018854]
[1724665273991,6.2999,160.24,160.16,3.45170303]
[1724665273992,37.7845076,160.23,160.16,3.45170303]
[1724665274177,396.5999,160.24,160.16,1.24850709]
[1724665274374,396.5999,160.24,160.13,13.16467509]
[1724665274574,1.56063568,160.23,160.14,3.45170303]
[1724665274770,1.56063568,160.23,160.15,3.45170303]
[1724665274994,31.54343849,160.23,160.14,3.45170303]
[1724665275174,390.3,160.22,160.14,24.70171879]
[1724665275504,390.3,160.22,160.08,29.98280281]
[1724665275505,46.44760281,160.21,160.08,29.98280281]
[1724665275795,46.44760281,160.21,160.09,14.41843918]
[1724665276005,46.44760281,160.21,160.1,4.70386875]
[1724665276171,46.44760281,160.21,160.11,3.45376441]
[1724665276377,46.44760281,160.21,160.12,3.45376441]
[1724665276577,6.2422,160.2,160.11,3.45376441]
[1724665276798,6.3095,160.18,160.12,3.45407442]
[1724665277094,1.56106673,160.17,160.08,29.98280281]
[1724665277296,6.3095,160.18,160.1,3.45360056]
[1724665277297,7.87056686,160.18,160.1,3.45360056]
[1724665277474,1.56106686,160.17,160.1,1.25020805]
[1724665277680,1.56106686,160.17,160.07,7.88802973]
[1724665277681,31.54386967,160.17,160.07,13.90639318]
[1724665277876,31.54386967,160.17,160.07,6.0161752]
[1724665278076,36.22690281,160.15,160.05,6.0161752]
[1724665278274,36.22690281,160.15,160.03,7.89021798]
[1724665278275,1.56159664,160.14,160.03,13.90639318]
[1724665279292,6.3095,160.13,160.04,20.0]
[1724665279604,1.56165354,160.12,160.04,6.0161752]
[1724665279773,1.56165354,160.12,160.02,29.98280281]
[1724665279979,1.56165354,160.12,160.03,6.02375999]
[1724665280177,1.56165354,160.12,160.01,6.02375999]
[1724665281179,1.56165354,160.12,160.02,65.0]
[1724665281414,1.56165354,160.12,160.02,94.98280281]
[1724665281825,1.56165354,160.12,160.02,49.98280281]
[1724665282320,15.0645,160.11,160.02,49.98280281]
[1724665282496,15.0645,160.11,160.02,20.0]
[1724665282497,1.5618729,160.1,160.02,20.0]
[1724665282826,1.5618729,160.1,160.0,29.98280281]
[1724665282827,1.5618729,160.1,160.01,20.0]
[1724665283029,1.5618729,160.1,159.98,29.98280281]
[1724665283394,16.62654972,160.11,160.02,29.98280281]
[1724665283630,16.62654972,160.11,159.98,20.0]
[1724665283631,15.0645,160.11,160.04,29.98280281]
[1724665283830,16.62625617,160.11,160.04,29.98280281]
[1724665284120,16.62625617,160.11,159.98,26.256]
[1724665284121,16.62625617,160.11,160.02,29.98280281]
[1724665284414,16.62625617,160.11,160.03,65.0]
[1724665284806,15.0645,160.11,160.04,1.24940617]
[1724665285007,16.62615875,160.11,160.03,65.0]
[1724665285232,1.56170914,160.1,160.03,65.0]
[1724665285926,16.62619604,160.11,160.03,65.0]
[1724665286222,15.0645,160.11,160.03,65.0]
[1724665286821,15.0645,160.11,160.04,29.98280281]
[1724665287022,15.0645,160.11,160.05,45.0]
[1724665287223,15.0645,160.11,160.06,29.98280281]
[1724665287427,6.3095,160.13,160.08,29.98280281]
[1724665287646,6.3095,160.13,160.09,21.24901438]
[1724665287803,6.3095,160.13,160.09,66.24901438]
[1724665288122,6.3095,160.13,160.09,65.0]
[1724665290338,6.3095,160.13,160.1,1.24912579]
[1724665290544,6.3095,160.13,160.1,45.0]
[1724665290751,6.3095,160.13,160.08,29.98280281]
[1724665290752,6.3095,160.13,160.09,45.0]
[1724665291420,1.5613515,160.12,160.07,20.0]
[1724665291736,1.56158713,160.12,160.07,20.0]
[1724665292237,6.3095,160.13,160.07,20.0]
[1724665292543,6.3095,160.13,160.07,21.24923515]
[1724665292732,6.3095,160.13,160.08,76.23203796]
[1724665292929,6.3095,160.13,160.08,74.98280281]
[1724665293129,16.426,160.15,160.1,29.98280281]
[1724665293441,16.426,160.15,160.11,45.0]
[1724665294039,6.5392,160.17,160.11,45.0]
[1724665294439,1.56126248,160.16,160.11,45.0]
[1724665294745,6.5392,160.17,160.11,45.0]
[1724665294930,6.5392,160.17,160.1,45.0]
[1724665295130,1.56132824,160.16,160.09,20.0]
[1724665296626,6.5392,160.17,160.09,20.0]
[1724665296837,6.5392,160.17,160.1,46.2490623]
[1724665297046,1.56121048,160.16,160.1,45.0]
[1724665297226,1.56121048,160.16,160.09,20.0]
[1724665302052,1.56121048,160.16,160.04,29.98280281]
[1724665302255,12.7826,160.17,160.06,29.98280281]
[1724665302564,12.7826,160.17,160.07,1.24915988]
[1724665302929,6.5392,160.17,160.08,31.23195013]
[1724665303339,6.5392,160.17,160.09,65.0]
[1724665303739,8.10048742,160.17,160.1,29.98280281]
[1724665304039,8.10048742,160.17,160.11,45.0]
[1724665304429,8.10048742,160.17,160.1,45.0]
[1724665304729,8.10048742,160.17,160.09,20.0]
[1724665304933,8.10048742,160.17,160.06,29.98280281]
[1724665304934,6.2441,160.15,160.06,29.98280281]
[1724665305247,16.2715,160.13,160.07,20.0]
[1724665305450,16.2715,160.13,159.99,6.0426]
[1724665305451,1.56164189,160.12,160.05,20.0]
[1724665305633,1.56164189,160.12,160.03,20.0]
[1724665305829,6.1774,160.11,159.96,20.0]
[1724665306048,1.56197385,160.1,160.0,29.98280281]
[1724665306957,1.56197385,160.1,159.98,29.98280281]
[1724665307126,7.80817385,160.1,159.98,29.98280281]
[1724665308363,7.80817385,160.1,159.99,20.0]
[1724665308860,14.32968529,160.1,159.99,20.0]
[1724665309366,14.32968529,160.1,160.0,45.0]
[1724665309573,6.2465,160.09,160.0,45.0]
[1724665309737,1.5622369,160.08,160.01,20.0]
[1724665310062,1.56223785,160.07,160.01,20.0]
[1724665311068,1.56223184,160.09,160.01,20.0]
[1724665311366,15.0247,160.08,160.01,20.0]
[1724665311567,1.56226422,160.07,160.01,20.0]
[1724665312557,15.0247,160.08,160.01,20.0]
[1724665312983,16.58676994,160.08,160.01,20.0]
[1724665313153,15.0247,160.08,160.02,74.98280281]
[1724665313864,390.3,160.09,160.04,29.98280281]
[1724665314060,6.1774,160.11,160.04,29.98280281]
[1724665314061,6.1774,160.11,160.05,45.0]
[1724665314486,1.56173567,160.1,160.03,20.0]
[1724665314789,1.56173567,160.1,160.02,20.0]
[1724665315087,1.56173567,160.1,160.01,20.0]
[1724665315254,6.1774,160.11,160.01,20.0]
[1724665315452,6.1774,160.11,160.02,1.2496366]
[1724665315647,1.5618285,160.1,160.01,20.0]
[1724665316250,1.5618285,160.1,160.02,45.0]
[1724665316451,1.5618285,160.1,160.03,20.0]
[1724665316647,6.1774,160.11,160.03,20.0]
[1724665317187,6.1774,160.11,160.03,21.24958384]
[1724665317683,1.5619722,160.1,160.03,20.0]
[1724665319286,12.4231,160.11,160.03,20.0]
[1724665319790,22.7377,160.09,159.97,15.5178]
[1724665319992,1.56226108,160.08,159.98,21.56398374]
[1724665320162,1.56226122,160.07,159.99,1.56398374]
[1724665320360,1.56226122,160.07,160.0,1.56398374]
[1724665320584,1.56226122,160.07,160.01,1.56398374]
[1724665320790,1.56226122,160.07,159.99,1.56398374]
[1724665320960,1.56226122,160.07,160.0,1.56398374]
[1724665321160,1.56226122,160.07,160.01,1.56398374]
[1724665321469,1.56226122,160.07,159.99,1.5640525]
[1724665321784,1.56226122,160.07,160.0,1.5640525]
[1724665321955,1.56226122,160.07,160.0,20.0]
[1724665322161,1.56226122,160.07,160.01,1.56405684]
[1724665322381,1.56226122,160.07,160.0,20.0]
[1724665322975,6.2847,160.06,160.0,20.0]
[1724665323172,1.56234332,160.05,159.99,45.0]
[1724665323380,1.562347,160.04,159.93,15.6362]
[1724665323580,1.562347,160.04,159.94,1.56438416]
[1724665323779,16.3725,160.03,159.95,2.81451168]
[1724665323962,16.3725,160.03,159.96,1.56438416]
[1724665324172,16.3725,160.03,159.97,1.56438416]
[1724665324383,16.3725,160.03,159.96,1.56434886]
[1724665324561,16.3725,160.03,159.97,1.56434886]
[1724665324764,16.3725,160.03,159.95,2.81441971]
[1724665325062,16.3725,160.03,159.96,31.54721912]
[1724665325263,403.09409653,160.06,159.98,29.98280281]
[1724665325491,396.5847,160.06,159.99,66.24982406]
[1724665326059,1.56228154,160.05,159.99,65.0]
[1724665326263,1.56244462,160.04,159.99,20.0]
[1724665326476,1.56244462,160.04,159.94,29.98280281]
[1724665326810,1.56244462,160.04,159.95,21.56441619]
[1724665327107,7.81084462,160.04,159.96,1.56441619]
[1724665327302,7.81084462,160.04,159.93,1.56445176]
[1724665327475,7.81084462,160.04,159.94,1.56445176]
[1724665327679,7.81084462,160.04,159.93,46.56445176]
[1724665327899,1.56244462,160.04,159.94,1.56445176]
[1724665328285,1.56244462,160.04,159.93,45.0]
[1724665328493,1.56244462,160.04,159.94,21.564471]
[1724665328681,7.81084462,160.04,159.95,45.0]
[1724665329331,396.548,160.05,159.95,45.0]
[1724665329611,1.56264564,160.04,159.95,45.0]
[1724665329791,21.3132,160.03,159.94,20.0]
[1724665330107,1.5628257,160.02,159.93,20.0]
[1724665330301,1.56280197,160.01,159.93,20.0]
[1724665331281,1.56280197,160.01,159.94,45.0]
[1724665331477,1.56280197,160.01,159.95,20.0]
[1724665331715,6.5372,160.0,159.95,20.0]
[1724665332083,6.5372,160.0,159.93,21.25038646]
[1724665333313,6.5372,160.0,159.94,45.0]
[1724665333609,6.5372,160.0,159.95,20.0]
[1724665335000,6.5372,160.0,159.94,45.0]
[1724665335207,8.10006327,160.0,159.9,29.98280281]
[1724665335419,8.10006327,160.0,159.91,45.0]
[1724665335930,6.5372,160.0,159.91,45.0]
[1724665336295,6.5372,160.0,159.94,29.98280281]
[1724665336497,6.5372,160.0,159.95,46.25017764]
[1724665336719,6.5372,160.0,159.96,1.2501834]
[1724665337329,6.5372,160.0,159.95,45.0]
[1724665337700,6.5372,160.0,159.95,46.25018957]
[1724665338009,6.5372,160.0,159.96,1.25018925]
[1724665338334,6.5372,160.0,159.95,45.0]
[1724665338514,6.5372,160.0,159.95,46.25018938]
[1724665338711,6.5372,160.0,159.96,1.25018974]
[1724665339034,15.0644,160.03,159.98,29.98280281]
[1724665339199,390.3,160.05,160.0,29.98280281]
[1724665339406,15.3005,160.07,160.01,45.0]
[1724665339619,15.3005,160.07,160.02,1.24972062]
[1724665340129,15.3005,160.07,160.02,29.98280281]
[1724665340329,6.6096,160.08,160.03,46.24948865]
[1724665340831,6.6096,160.08,160.03,45.0]
[1724665341944,6.6096,160.08,160.0,29.98280281]
[1724665342226,6.6096,160.08,160.01,65.0]
[1724665342801,1.56210022,160.07,160.01,65.0]
[1724665343205,8.17172751,160.08,160.01,65.0]
[1724665343537,1.56211007,160.07,160.01,65.0]
[1724665343732,8.17170341,160.08,160.01,65.0]
[1724665344030,6.6096,160.08,160.01,65.0]
[1724665345137,15.1875,160.11,160.05,45.0]
[1724665345947,16.74923407,160.11,160.04,29.98280281]
[1724665346116,15.1875,160.11,160.04,31.23219006]
[1724665346618,15.1875,160.11,160.04,29.98280281]
[1724665346820,15.1875,160.11,160.05,45.0]
[1724665347144,1.56177184,160.1,160.03,20.0]
[1724665347349,1.56178665,160.1,160.05,45.0]
[1724665347645,16.74928626,160.11,160.05,45.0]
[1724665347808,16.74928626,160.11,160.04,45.0]
[1724665348009,1.56178927,160.1,160.03,20.0]
[1724665348350,1.56178927,160.1,160.01,20.0]